Cogmind - Beta 9.2 @@@ ROGUE MODE // 2019.11.30 @ 00:36:00 Player: Suslik Result: Self-destructed Performance ------------- Evolutions (5) 2500 Regions Visited (21) 4200 Robots Destroyed (257) 1285 Value Destroyed (12150) 12150 Prototype IDs (29) 580 Alien Tech Used (0) 0 Bonus (3417) 3417 TOTAL SCORE: 24132 Bonus ------- High Alert Combat Kills 2286 Follower Combat Kills 2122 Entered Garrisons 600 Used RIF Installer 1500 Network Hubs Disabled 800 Met Data Miner 300 Built Enhanced Grunts 300 A7 Reached Mainframe 300 Met R17 at Cetus 500 Friendly Fire -5291 Cogmind --------- Core Integrity 588/1000 Matter 155/300 Energy 95/950 System Corruption 22% Temperature Cool (308) Movement Core (3400) Ox67 Location -5/Hub_04(d) Parts ------- > --- POWER (1) -------- Light Angular Momentum Engine > --- PROPULSION (2) --- (None) > --- UTILITY (12) ----- Fusion Compressor High-capacity Storage Unit High-capacity Storage Unit High-capacity Storage Unit High-capacity Storage Unit High-capacity Storage Unit Advanced Energy Well Centrium Medium Armor Plating Advanced System Shield Relay Coupler [NC] (22) > --- WEAPON (2) ------- EMDS > --- INVENTORY (44) --- Carbon-fiber Leg Compact Wheel Improved Coolant Injector High-capacity Storage Unit High-capacity Storage Unit High-capacity Battery (400) YI-UF0's Bottomless Matter Pit (1306) Faulty Experimental Sensor Array Long-range Terrain Scanner Microactuators Experimental Phase Shifter Experimental Phase Shifter Improved Medium Armor Plating Improved Medium Armor Plating EM Dispersion Field EM Dispersion Field Improved Hacking Suite Advanced System Shield Relay Coupler [NC] (27) Relay Coupler [NC] (22) Relay Coupler [NC] (26) Relay Coupler [NC] (27) Relay Coupler [NC] (29) System Backup Module Long-range Tractor Beam Advanced Variable Charge Gun Improved EM Pulse Cannon EMDS EMDS Shock Bomb Launcher Improved Proton Missile Launcher Remote Datajack Power Sword Peak State ------------ > --- POWER ------------ Quantum Reactor > --- PROPULSION ------- Armored Huge Wheel > --- UTILITY ---------- High-capacity Storage Unit High-capacity Storage Unit High-capacity Storage Unit High-capacity Storage Unit High-capacity Storage Unit Advanced Signal Interpreter Experimental Phase Shifter Centrium Medium Armor Plating Medium Reflective Plating Damper Plating > --- WEAPON ----------- Heavy Proton Cannon Heavy Proton Cannon > --- INVENTORY -------- Compact Wheel Fusion Compressor Experimental Heat Sink Improved Coolant Injector High-capacity Storage Unit High-capacity Storage Unit High-capacity Battery Advanced Energy Well YI-UF0's Bottomless Matter Pit Experimental Sensor Array Experimental Sensor Array Long-range Terrain Scanner Microactuators Layered Heavy Armor Plating Centrium Medium Armor Plating Medium Regenerative Plating EM Dispersion Field EM Dispersion Field Advanced Hacking Suite Advanced System Shield Relay Coupler [NC] Relay Coupler [NC] Relay Coupler [NC] Relay Coupler [NC] Relay Coupler [NC] Relay Coupler [NC] System Backup Module Long-range Tractor Beam Advanced Variable Charge Gun Improved EM Pulse Cannon Improved EM Pulse Cannon EMDS EMDS Shock Bomb Launcher Proton Missile Launcher Improved Proton Missile Launcher Remote Datajack Improved Plasma Cutter Power Sword Falx Heavy Pick [Rating: 102] Favorites ----------- Power Antimatter Reactor Engine Reinforced Ion Engine Power Core Fission Core Reactor Antimatter Reactor Propulsion Armored Huge Wheel Treads Light Treads Leg Aluminum Leg Wheel Armored Huge Wheel Utility High-capacity Storage Unit Device Experimental Sensor Array Storage High-capacity Storage Unit Processor Advanced Signal Interpreter Hackware Relay Coupler [Grunt] Protection Medium Reactive Plating Weapon Axe Energy Gun Small Laser Energy Cannon Improved EM Pulse Cannon Ballistic Gun Improved Assault Rifle Ballistic Cannon Battle Cannon Launcher Shock Bomb Launcher Special Weapon Remote Datajack Impact Weapon Heavy Mace Slashing Weapon Axe Piercing Weapon Heavy Pick Special Melee Weapon Datajack Build | -11 -10 -10 -10 -9 -8 -8 -8 -8 -7 -7 -7 -7 -7 -6 -6 -6 -5 -5 -5 -5 -5 ------- Run | Scr Mat Min Exi Min Mat Gar Mat Gar Fac Was Fac Low Dat Pro Fac Gar Fac Ext Cet Arc Hub Slots Evolved 10 | . . . . . 4 . . . 2 . . . . . 2 . 2 . . . . Power . | . . . . . . . . . . . . . . . . . . . . . . Propulsion . | . . . . . . . . . . . . . . . . . . . . . . Utility 10 | . . . . . 4 . . . 2 . . . . . 2 . 2 . . . . Weapon . | . . . . . . . . . . . . . . . . . . . . . . Parts Attached 414 | 3 5 7 . 15 31 20 28 16 49 17 16 2 . 1 19 15 4 37 29 4 96 Power 21 | . . 1 . . 1 2 2 . 4 1 . . . . 1 . . . 4 . 5 Engine 8 | . . 1 . . 1 1 2 . . . . . . . . . . . . . 3 Core 6 | . . . . . . 1 . . 4 . . . . . 1 . . . . . . Reactor 7 | . . . . . . . . . . 1 . . . . . . . . 4 . 2 Propulsion 23 | 2 . . . 6 3 1 . . 5 . 1 . . . . . . . . . 5 Treads 2 | 2 . . . . . . . . . . . . . . . . . . . . . Leg 2 | . . . . . 2 . . . . . . . . . . . . . . . . Wheel 19 | . . . . 6 1 1 . . 5 . 1 . . . . . . . . . 5 Hover . | . . . . . . . . . . . . . . . . . . . . . . Flight . | . . . . . . . . . . . . . . . . . . . . . . Utility 166 | 1 2 . . . 9 4 9 6 14 14 6 2 . 1 8 5 2 18 14 3 48 Device 54 | . . . . . 1 . 1 . 2 4 2 2 . . 5 . 2 8 6 1 20 Storage 18 | 1 2 . . . 2 . 1 . 2 1 1 . . . 1 . . . 1 . 6 Processor 1 | . . . . . . . . . . . . . . 1 . . . . . . . Hackware 24 | . . . . . . 1 3 3 3 3 1 . . . 1 2 . 2 1 1 3 Protection 69 | . . . . . 6 3 4 3 7 6 2 . . . 1 3 . 8 6 1 19 Artifact . | . . . . . . . . . . . . . . . . . . . . . . Weapon 204 | . 3 6 . 9 18 13 17 10 26 2 9 . . . 10 10 2 19 11 1 38 Energy Gun 26 | . 2 4 . 1 4 5 2 . 4 . . . . . 1 . . . 1 . 2 Energy Cannon 37 | . . . . . 2 . . . 5 . 3 . . . 3 2 . 8 2 . 12 Ballistic Gun 13 | . . . . 2 3 1 3 2 2 . . . . . . . . . . . . Ballistic Cannon 5 | . . . . 2 . . 1 . 2 . . . . . . . . . . . . Launcher 34 | . . 1 . 4 4 5 . 3 . . 1 . . . . 5 . 2 4 . 5 Special Weapon 19 | . . . . . . . . . 3 1 1 . . . . 2 . 5 2 1 4 Impact Weapon 14 | . . . . . . . 6 3 5 . . . . . . . . . . . . Slashing Weapon 35 | . 1 1 . . 5 . 1 . . 1 4 . . . 5 . 1 4 1 . 11 Piercing Weapon 8 | . . . . . . . . . . . . . . . 1 1 1 . 1 . 4 Special Melee Weapon 13 | . . . . . . 2 4 2 5 . . . . . . . . . . . . Unidentified Prototypes 17 | . . . . . 3 . 1 . . . . . . . 2 . . . 6 . 5 Parts Lost 60 | . . 2 . 5 10 3 . 1 15 . . . . . . . . 2 . . 22 Power 11 | . . . . . 1 1 . . 4 . . . . . . . . . . . 5 Propulsion 9 | . . . . 3 2 . . . . . . . . . . . . . . . 4 Utility 18 | . . . . . 2 1 . 1 5 . . . . . . . . 1 . . 8 Weapon 22 | . . 2 . 2 5 1 . . 6 . . . . . . . . 1 . . 5 Highest Loss Streak 5 | . . 1 . 3 3 3 . 1 4 . . . . . . . . 1 . . 5 Average Slot Usage (%) 85 | . 100 100 100 96 84 88 89 89 79 79 77 78 84 92 80 80 81 87 88 88 86 Engine 3 | . 14 14 14 14 8 5 8 9 3 . . . . . . . . . . . 1 Core 1 | . . . . . . 3 . . 2 4 . . . . . 6 5 5 . . . Reactor 2 | . . . . . . . . . . 2 7 7 7 7 5 . . . 4 5 2 Treads 2 | . 28 28 28 . . . . . . . . . . . . . . . . . . Wheel 6 | . . . . 24 9 9 9 9 6 7 7 7 7 7 6 6 5 5 5 5 5 Device 3 | . . . . . . . . . . 2 3 5 15 15 6 . 10 7 5 5 8 Storage 33 | . 28 28 28 28 35 36 36 36 37 37 38 38 38 38 33 33 29 29 29 29 30 Processor 2 | . . . . . . . . . . . . . . 7 6 6 5 5 5 5 5 Hackware 1 | . . . . . . 3 1 1 3 2 . . . . . . . . 1 . 4 Protection 9 | . . . . . 10 13 16 15 10 6 5 4 . . 6 12 11 18 20 22 13 Energy Gun 3 | . 25 26 28 9 6 7 2 . 1 . . . . . . . . . . . . Energy Cannon 1 | . . . . . 2 . . . 4 . 2 . . . . 3 3 4 2 7 2 Ballistic Gun 1 | . . . . 3 3 5 10 10 1 . . . . . . . . . . . . Slashing Weapon 4 | . 2 1 . . 2 . . . . 6 10 15 15 15 8 4 4 3 . . 3 Naked Turns . | . . . . . . . . . . . . . . . . . . . . . . Heaviest Build 259 | 16 72 78 77 83 179 184 187 187 243 226 235 226 183 183 232 236 239 246 242 237 259 Greatest Support 40 | 40 40 40 40 32 32 28 28 28 28 28 28 28 28 28 28 28 28 28 28 28 28 Greatest Overweight (x) 12 | . 1 1 1 7 9 6 6 6 8 8 8 8 6 6 8 8 8 8 8 8 12 Average Overweight (x) 6 | . . 1 1 3 5 5 5 5 6 6 7 6 6 6 7 7 8 7 7 8 7 Largest Inventory Capacity 44 | 8 20 20 20 20 36 36 36 36 44 44 44 44 44 44 44 44 44 44 44 44 44 Average Capacity 39 | 6 13 20 20 20 35 36 36 36 43 43 44 44 44 44 44 44 44 44 44 44 44 Most Carried 44 | 6 15 20 20 20 36 36 36 36 44 44 44 44 44 43 44 44 44 44 44 44 44 Average Carried 37 | 5 9 18 20 18 24 34 35 35 36 41 43 43 44 43 43 43 43 43 43 43 41 Final Capacity 44 | 8 20 20 20 20 36 36 36 36 44 44 44 44 44 44 44 44 44 44 44 44 44 Final Carried 44 | 4 15 20 20 20 35 36 36 36 42 43 44 44 44 43 44 44 44 43 44 43 35 Class Distribution -------------------- 61% | Hauler-Mutant 27% | Bothacker-Mutant 8% | Bothacker-Assassin Dominant Class ---------------- Mutant | -10/Materials Hauler-Mutant | -10/Mines Hauler-Mutant | -10/Exiles Hauler-Mutant | -9/Mines Hauler-Mutant | -8/Materials Hauler-Mutant | -8/Garrison Hauler-Mutant | -8/Materials Hauler-Mutant | -8/Garrison Hauler-Mutant | -7/Factory Hauler-Mutant | -7/Waste Hauler-Mutant | -7/Factory Hauler-Mutant | -7/Lower Caves Hauler-Mutant | -7/Data Miner Hauler-Mutant | -6/Proximity Caves Hauler-Mutant | -6/Factory Bothacker-Mutant | -6/Garrison Bothacker-Assassin | -5/Factory Bothacker-Mutant | -5/Extension Bothacker-Mutant | -5/Cetus Bothacker-Mutant | -5/Archives Bothacker-Mutant | -5/Hub_04(d) Resources | -11 -10 -10 -10 -9 -8 -8 -8 -8 -7 -7 -7 -7 -7 -6 -6 -6 -5 -5 -5 -5 -5 ----------- Run | Scr Mat Min Exi Min Mat Gar Mat Gar Fac Was Fac Low Dat Pro Fac Gar Fac Ext Cet Arc Hub Matter Collected 8753 | 210 70 189 66 273 402 333 825 478 1219 502 766 71 . 22 48 514 40 580 484 45 1616 Remotely . | . . . . . . . . . . . . . . . . . . . . . . Salvage Created 13865 | 59 245 158 . 299 415 317 716 405 1296 1312 1242 23 . . 286 778 104 789 767 . 4654 Parts 583 | 3 18 10 . 25 17 20 39 17 52 25 60 3 . . 18 31 7 36 42 . 160 Haulers Intercepted 3 | . . . . . . . 2 . . . . . . . . . . . . . 1 Recyclers Shooed 7 | . . 1 . 1 2 . 2 . 1 . . . . . . . . . . . . Parts Field Recycled . | . . . . . . . . . . . . . . . . . . . . . . Retrieved Matter . | . . . . . . . . . . . . . . . . . . . . . . Parts Self-Destructed 8 | . . . . . . . . . . . . 8 . . . . . . . . . Prevented . | . . . . . . . . . . . . . . . . . . . . . . Kills | -11 -10 -10 -10 -9 -8 -8 -8 -8 -7 -7 -7 -7 -7 -6 -6 -6 -5 -5 -5 -5 -5 ------- Run | Scr Mat Min Exi Min Mat Gar Mat Gar Fac Was Fac Low Dat Pro Fac Gar Fac Ext Cet Arc Hub Combat Hostiles Destroyed 205 | . 6 5 . 12 16 13 11 7 22 5 21 1 . . 4 14 2 11 6 . 49 Melee 61 | . . . . . 3 . 2 . 6 5 17 1 . . 4 1 2 3 . . 17 Guns 30 | . 6 3 . . 3 4 7 4 3 . . . . . . . . . . . . Cannons 23 | . . . . 3 1 . 2 . 4 . 2 . . . . . . 3 . . 8 AOE 55 | . . 2 . 9 9 9 . 2 1 . 2 . . . . 11 . . 2 . 8 Classes Destroyed 19 | 1 1 1 . 4 1 1 2 1 3 1 1 . . . . . . . . . 2 Worker 11 | . . . . 2 . . . . 1 . 1 . . . . . . . . . 7 Builder 8 | . . . . . . . . . 1 . . . . . . . . 1 . . 6 Tunneler 3 | . . . . 1 . . 1 . 1 . . . . . . . . . . . . Hauler 3 | . . . . . . . 2 . . . . . . . . . . . . . 1 Recycler 8 | 1 . . . 1 1 . . . 1 . 1 . . . . . . . . . 3 Operator 1 | . . . . . . . . . . . 1 . . . . . . . . . . Watcher 9 | . . . . . . 1 1 . 1 . 1 . . . 3 . . . 2 . . Swarmer 39 | . . 5 . 7 7 9 2 . . . 2 1 . . . 4 . 2 . . . Grunt 92 | . 6 . . 1 7 3 6 6 18 . 14 . . . 1 7 . 1 2 . 20 Brawler 4 | . . . . . . . . . 1 . . . . . . . . . 1 . 2 Duelist 4 | . . . . . . . . 1 . . 1 . . . . 1 . . . . 1 Protector 4 | . . . . . . . . . . . . . . . . . . . . . 4 Sentry 19 | . . . . . 2 1 3 . . . 1 . . . . 1 . 6 . . 5 Demolisher 4 | . . . . 2 . . . . . . . . . . . . . . . . 2 Hunter 5 | . . . . . . . 1 . 1 . 1 . . . . . . . . . 2 Programmer 15 | . . . . . . . . . 3 . 2 . . . 3 1 2 2 . . 2 Behemoth 1 | . . . . . . . . . . . . . . . . . . . . . 1 Compactor 5 | . . . . . . . . . . 5 . . . . . . . . . . . Cetus Guard 3 | . . . . . . . . . . . . . . . . . . . 3 . . Enhanced Grunt 3 | . . . . . . . . . . . . . . . . . . . . . 3 Lightning 10 | . . . . . . . . . . . . . . . . . . . . . 10 Assembled 2 | . . . . 2 . . . . . . . . . . . . . . . . . Thug 1 | . . . . . . . . . . . . . . . . . . . 1 . . Savage 1 | . . . . . . . . . . . . . . . . . . . 1 . . Best Kill Streak 14 | 1 3 3 . 7 5 5 2 3 4 2 5 1 . . 2 8 1 4 7 . 14 Combat Bots Only 9 | . 3 3 . 7 5 5 2 3 3 2 5 1 . . 1 8 1 4 6 . 9 Max Kills in Single Turn 9 | 1 1 2 . 2 2 3 2 1 1 1 1 1 . . 1 2 1 1 3 . 9 Gunslinging 1 | . . . . . . 1 1 . . . . . . . . . . . . . . Exploded 5 | . . 2 . 2 2 3 . 1 1 . 1 . . . . 2 . . 1 . 5 Melee 1 | . . . . . 1 . 1 . 1 1 1 1 . . 1 1 1 1 . . 1 Uniques/NPCs Destroyed 2 | . . 1 . . . . . . . . . . . . . . . . 1 . . YI-UF0 (-10/Mines) A7 (-5/Cetus) Combat | -11 -10 -10 -10 -9 -8 -8 -8 -8 -7 -7 -7 -7 -7 -6 -6 -6 -5 -5 -5 -5 -5 -------- Run | Scr Mat Min Exi Min Mat Gar Mat Gar Fac Was Fac Low Dat Pro Fac Gar Fac Ext Cet Arc Hub Damage Taken 17469 | . 135 206 . 495 1425 932 421 362 3681 . 997 17 . . 26 862 33 986 488 . 6403 Core 1491 | . 12 6 . 51 278 58 39 48 505 . 42 . . . . 40 1 49 23 . 339 Absorbed by Shields 26 | . . . . . . . . . . . . . . . . . . . 26 . . Core Remaining (%) 62 | 100 . . . 72 . . . 23 . . . . . 21 . 95 . . . . . Volleys Fired 509 | 4 16 18 . 20 34 50 36 36 48 9 10 . . . 2 28 . 88 30 3 77 Largest 2 | 2 2 2 . 2 2 2 2 2 2 1 2 . . . 2 2 . 2 2 1 2 Hottest 240 | 80 80 80 . 79 128 100 67 46 132 30 138 . . . 138 138 . 138 240 30 162 Shots Fired 735 | 8 32 35 . 34 53 71 73 51 90 9 15 . . . 4 31 . 107 37 3 82 Gun 314 | 8 32 34 . 12 38 45 66 30 37 . . . . . . . . . 1 . 11 Cannon 182 | . . . . 14 4 . 7 . 48 . 10 . . . 4 6 . 45 . . 44 Launcher 114 | . . 1 . 8 11 26 . 21 . . 3 . . . . 21 . . 14 . 9 Special 125 | . . . . . . . . . 5 9 2 . . . . 4 . 62 22 3 18 Kinetic 190 | . . . . 20 11 18 73 30 38 . . . . . . . . . . . . Thermal 162 | 4 32 33 . . 27 16 . . . . . . . . . . . . 21 . 29 Explosive 23 | . . 1 . 6 11 5 . . . . . . . . . . . . . . . Electromagnetic 273 | 4 . 1 . 8 4 32 . 21 47 . 13 . . . 4 27 . 45 14 . 53 Robot Hit Streak 21 | 2 15 3 . 8 6 10 11 8 21 8 16 . . . 6 11 . 19 10 5 17 Robot Miss Streak 8 | 1 3 5 . 2 4 3 2 2 4 1 1 . . . 1 1 . 3 8 . 5 Penetration Max 1 | . . . . . . . . . . . . . . . . . . . . . 1 Secondary Targets 2 | . . . . . . 1 1 . . . . . . . . . . . . . . Max Gunslinging Chain 1 | . . . . . . 1 1 . . . . . . . . . . . . . . Shots Hit Robots 850 | 4 27 13 . 22 61 31 62 24 127 95 54 2 . . 11 19 11 105 12 3 167 Core Hits 454 | 1 13 6 . 22 37 24 31 13 34 11 33 1 . . 9 28 4 16 38 . 133 Critical Hits 27 | . . . . . 1 1 1 . . 4 . . . . . 1 . 1 6 . 12 Critical Kills 3 | . . . . . . . 1 . . . . . . . . . . 1 1 . . Critical Parts Destroyed 18 | . . . . . 1 1 . . . 1 . . . . . 1 . . 3 . 11 Melee Attacks 657 | . 3 1 . . 47 1 35 7 85 87 96 3 . 6 44 4 25 40 1 . 172 Impact 96 | . . . . . . . 15 3 78 . . . . . . . . . . . . Slashing 395 | . 3 1 . . 47 . 12 . . 87 96 3 . 6 20 1 7 40 . . 72 Piercing 146 | . . . . . . . . . . . . . . . 24 3 18 . 1 . 100 Sneak Attacks 106 | . . 1 . . 1 1 3 . 4 87 2 1 . . . . . . 1 . 5 Combat Hostiles 93 | . . . . . . 1 2 . 1 87 . 1 . . . . . . . . 1 Follow-up Attacks 24 | . . . . . . . . . . . 7 1 . . . . 1 3 . . 12 Damage Inflicted 31920 | 40 298 269 . 1150 1943 1281 1071 641 3153 4113 2151 112 . . 505 1255 333 1575 1555 . 10475 Guns 2612 | 40 292 76 . 100 310 309 736 315 434 . . . . . . . . . . . . Cannons 4538 | . . . . 195 73 . 184 . 964 . 206 . . . 190 96 . 993 . . 1637 Explosions 10369 | . . 97 . 843 924 972 . 326 93 . 359 . . . 54 1061 . . 1285 . 4355 Melee 13872 | . . 69 . . 636 . 151 . 1655 4113 1586 112 . . 261 98 333 582 59 . 4217 Ramming 101 | . 6 27 . 12 . . . . 7 . . . . . . . . . . . 49 Kinetic 2128 | . . . . 229 72 161 920 315 431 . . . . . . . . . . . . Thermal 1791 | 10 292 64 . 140 310 118 . . 93 . 160 . . . 54 . . . 211 . 339 Explosive 2004 | . . 97 . 632 852 423 . . . . . . . . . . . . . . . Electromagnetic 12024 | 30 . 12 . 137 73 579 . 326 967 . 405 . . . 190 1157 . 993 1285 . 5870 Impact 1806 | . . . . . . . 151 . 1655 . . . . . . . . . . . . Slashing 8940 | . . 69 . . 636 . . . . 4113 1586 112 . . 63 . 40 582 . . 1739 Piercing 3126 | . . . . . . . . . . . . . . . 198 98 293 . 59 . 2478 Highest Corruption 22 | . . . . . 6 6 6 6 5 20 18 17 17 14 . . . . . . 22 Average Corruption 9 | . . . . . 3 6 6 6 2 18 17 17 14 13 . . . . . . 8 Corruption Purged 10 | . . . . . . . . . . 3 1 . 3 1 . . . . . . 2 Effects 397 | . . . . . 11 31 43 30 19 74 91 2 24 14 . . . . . . 58 Message Errors 86 | . . . . . 1 6 10 7 4 13 18 . 11 5 . . . . . . 11 Matter Fused 76 | . . . . . 1 8 10 10 2 9 19 . 4 1 . . . . . . 12 Heat Flow Errors 32 | . . . . . 3 1 8 4 2 3 5 1 1 1 . . . . . . 3 Energy Discharges 56 | . . . . . 2 5 9 2 2 11 11 . 5 3 . . . . . . 6 Parts Rejected 1 | . . . . . . . 1 . . . . . . . . . . . . . . Data Loss (minor) 29 | . . . . . 2 4 1 1 3 3 5 . . 2 . . . . . . 8 Data Loss (major) 11 | . . . . . . 1 . 1 . 3 2 . 1 . . . . . . . 3 Misfires 7 | . . . . . 1 1 1 1 . . 1 . . . . . . . . . 2 Alerts 7 | . . . . . . . . . . 4 2 . . 1 . . . . . . . Misdirections 29 | . . . . . . . . . . 10 15 . 2 1 . . . . . . 1 Targeting Errors 58 | . . . . . 1 4 3 3 5 18 12 1 . . . . . . . . 11 Weapon Failures 5 | . . . . . . 1 . 1 1 . 1 . . . . . . . . . 1 Overload Shots 1 | . . . . . . . . . . . . . . . . . . . 1 . . Overflow Damage 897 | . . . . 61 157 2 3 . 265 . 28 . . . 19 15 . 6 27 . 314 Projectiles 41 | . . . . . . . 3 . . . 2 . . . . . . . . . 36 Explosions 311 | . . . . 61 66 2 . . . . 9 . . . 19 15 . . 27 . 112 Melee 545 | . . . . . 91 . . . 265 . 17 . . . . . . 6 . . 166 Knockbacks 15 | . . 1 . 1 . . 2 . 11 . . . . . . . . . . . . Impact 8 | . . 1 . . . . . . 7 . . . . . . . . . . . . Kinetic 7 | . . . . 1 . . 2 . 4 . . . . . . . . . . . . Secondary . | . . . . . . . . . . . . . . . . . . . . . . Self-Inflicted Damage 671 | . . . . 236 28 4 . 14 35 . 61 . . . . 8 . . 66 . 219 Shots 32 | . . . . 8 1 1 . 2 1 . 3 . . . . 5 . . 3 . 8 Rammed 11 | . 1 6 . 1 . . . . 1 . . . . . . . . . . . 2 Targets Rammed 11 | . 1 6 . 1 . . . . 1 . . . . . . . . . . . 2 Kicked . | . . . . . . . . . . . . . . . . . . . . . . Crushed . | . . . . . . . . . . . . . . . . . . . . . . Highest Temperature 470 | 72 138 162 . 66 390 352 250 273 470 221 411 259 259 258 36 228 . 377 332 38 349 Average Temperature 104 | 38 48 81 . 23 104 84 77 111 194 91 118 134 134 195 21 71 . 88 97 17 98 Received Heat Transfer 5167 | . 72 12 . . 612 396 135 189 1602 . 366 . . . 9 258 . 189 31 . 1296 Effects 16 | . . . . . . 1 . 2 9 . 3 . . . . . . . 1 . . Shutdowns 1 | . . . . . . . . . . . 1 . . . . . . . . . . Energy Bleed 2 | . . . . . . . . 1 1 . . . . . . . . . . . . Interference 6 | . . . . . . . . 1 2 . 2 . . . . . . . 1 . . Matter Decay 2 | . . . . . . . . . 2 . . . . . . . . . . . . Short Circuit 2 | . . . . . . . . . 2 . . . . . . . . . . . . Damage (minor) 3 | . . . . . . 1 . . 2 . . . . . . . . . . . . Siege Activations . | . . . . . . . . . . . . . . . . . . . . . . Robots Corrupted 39 | . . . . . . . . 1 4 . . . . . . 2 . 5 5 . 22 Combat Hostiles 32 | . . . . . . . . 1 4 . . . . . . 2 . 5 4 . 16 Parts Fried 117 | 1 . . . . . . . 1 16 . 2 . . . 5 8 . 5 9 . 70 Impact Corruptions 14 | . . . . . . . . . 14 . . . . . . . . . . . . Robots Melted . | . . . . . . . . . . . . . . . . . . . . . . Combat Hostiles . | . . . . . . . . . . . . . . . . . . . . . . Parts Melted 1 | . . . . . 1 . . . . . . . . . . . . . . . . Heat Transferred 3100 | 25 650 150 . 200 655 259 . . 100 . 100 . . . 50 . . . 280 . 631 Parts Sabotaged 1 | . . . . . . . . . . . . . . . . . . . . . 1 Parts Stolen . | . . . . . . . . . . . . . . . . . . . . . . Parts Stripped . | . . . . . . . . . . . . . . . . . . . . . . Power Chain Reactions 11 | . . . . 2 1 1 . . 1 . 1 . . . 1 2 . . 1 . 1 Missiles Intercepted . | . . . . . . . . . . . . . . . . . . . . . . Alert | -11 -10 -10 -10 -9 -8 -8 -8 -8 -7 -7 -7 -7 -7 -6 -6 -6 -5 -5 -5 -5 -5 ------- Run | Scr Mat Min Exi Min Mat Gar Mat Gar Fac Was Fac Low Dat Pro Fac Gar Fac Ext Cet Arc Hub Peak Influence 1764 | 5 145 116 . 189 250 630 362 316 301 571 707 . . . 99 456 283 201 550 363 1764 Average Influence 257 | 4 51 37 . 150 154 415 170 184 134 358 336 . . . 20 277 216 65 243 139 803 Maximum Alert Level 5 | . . . . . 1 2 1 1 1 2 3 . . . . 2 1 1 2 1 5 Low Security (%) 58 | 100 100 100 . 100 66 9 66 56 79 11 14 . . . 100 36 20 99 69 61 26 Level 1 22 | . . . . . 33 26 33 43 20 55 58 . . . . 40 79 . 4 38 . Level 2 9 | . . . . . . 64 . . . 32 19 . . . . 22 . . 25 . . Level 3 6 | . . . . . . . . . . . 6 . . . . . . . . . 46 Level 4 2 | . . . . . . . . . . . . . . . . . . . . . 19 Level 5 . | . . . . . . . . . . . . . . . . . . . . . 7 High Security . | . . . . . . . . . . . . . . . . . . . . . . Max Security . | . . . . . . . . . . . . . . . . . . . . . . Squads Dispatched 44 | . 3 1 . . 3 . 3 . 8 . 4 . . . 2 . 3 2 . . 15 Investigation 7 | . 2 1 . . . . 1 . 2 . 1 . . . . . . . . . . Extermination 9 | . . . . . . . . . 2 . 1 . . . 2 . 2 . . . 2 Reinforcement 18 | . 1 . . . 3 . 2 . 4 . 2 . . . . . 1 2 . . 3 Assault 10 | . . . . . . . . . . . . . . . . . . . . . 10 Garrison . | . . . . . . . . . . . . . . . . . . . . . . Intercept . | . . . . . . . . . . . . . . . . . . . . . . Construction Impeded 6 | . . . . . 1 . 1 . . . 1 . . . . . . 1 . . 2 Haulers Reinforced 1 | . . . . . . . . . . . 1 . . . . . . . . . . Alert ID Control Effect 3 | . . . . . . . . 3 . . . . . . . . . . . . . Stealth | -11 -10 -10 -10 -9 -8 -8 -8 -8 -7 -7 -7 -7 -7 -6 -6 -6 -5 -5 -5 -5 -5 --------- Run | Scr Mat Min Exi Min Mat Gar Mat Gar Fac Was Fac Low Dat Pro Fac Gar Fac Ext Cet Arc Hub Distress Signals 23 | . . . . . 1 . 4 . 8 . 1 . . . . . . 3 2 . 4 Communications Jammed . | . . . . . . . . . . . . . . . . . . . . . . Distress Signals . | . . . . . . . . . . . . . . . . . . . . . . Times Spotted 422 | . 9 8 . 16 29 24 31 17 67 6 38 3 . . 7 21 3 31 15 2 95 Peak Tracking Total 16 | . 4 3 . 5 7 6 4 3 7 1 5 3 . . 2 7 2 6 9 1 16 Tactical Retreats 65 | . 2 1 . 1 5 8 5 2 11 . 5 1 . . . 4 . 4 1 . 15 Traps | -11 -10 -10 -10 -9 -8 -8 -8 -8 -7 -7 -7 -7 -7 -6 -6 -6 -5 -5 -5 -5 -5 ------- Run | Scr Mat Min Exi Min Mat Gar Mat Gar Fac Was Fac Low Dat Pro Fac Gar Fac Ext Cet Arc Hub Traps Triggered 23 | . . . . . 3 1 1 2 2 . . . . . . 9 . 3 . . 2 Indirectly 6 | . . . . . . . . 2 . . . . . . . 4 . . . . . Trap Hack Attempts . | . . . . . . . . . . . . . . . . . . . . . . Triggered . | . . . . . . . . . . . . . . . . . . . . . . Disarmed . | . . . . . . . . . . . . . . . . . . . . . . Reprogrammed . | . . . . . . . . . . . . . . . . . . . . . . Reused . | . . . . . . . . . . . . . . . . . . . . . . Traps Extracted . | . . . . . . . . . . . . . . . . . . . . . . Installed . | . . . . . . . . . . . . . . . . . . . . . . Triggered 8 | . . . . . . . . . . . . . . . . 1 . . . . 7 Machines | -11 -10 -10 -10 -9 -8 -8 -8 -8 -7 -7 -7 -7 -7 -6 -6 -6 -5 -5 -5 -5 -5 ---------- Run | Scr Mat Min Exi Min Mat Gar Mat Gar Fac Was Fac Low Dat Pro Fac Gar Fac Ext Cet Arc Hub Machines Disabled 48 | . . . . . 1 4 . 5 1 . 3 . . . . 5 . 2 4 1 22 Max in Single Turn 9 | . . . . . 1 1 . 1 1 . 3 . . . . 2 . . 1 . 9 Garrison Access 5 | . . . . . . . . . 1 . 2 . . . . . . . . . 2 Garrison Relay 7 | . . . . . . 2 . 3 . . . . . . . 2 . . . . . Network Hub 4 | . . . . . . . . . . . . . . . . . . . . . 4 Machines Sabotaged . | . . . . . . . . . . . . . . . . . . . . . . Garrisons Compromised . | . . . . . . . . . . . . . . . . . . . . . . Overloaded Fab Kills . | . . . . . . . . . . . . . . . . . . . . . . Fab Network Shutdowns 1 | . . . . . . . . . . . 1 . . . . . . . . . . Hacking | -11 -10 -10 -10 -9 -8 -8 -8 -8 -7 -7 -7 -7 -7 -6 -6 -6 -5 -5 -5 -5 -5 --------- Run | Scr Mat Min Exi Min Mat Gar Mat Gar Fac Was Fac Low Dat Pro Fac Gar Fac Ext Cet Arc Hub Machines Accessed 53 | . 3 1 1 . 3 . 7 . 4 . 8 . 4 . 3 . 1 7 2 . 9 Terminals 29 | . 2 . . . 1 . 4 . . . 4 . . . 1 . 1 7 2 . 7 Fabricators 2 | . . . . . . . . . 1 . 1 . . . . . . . . . . Repair Stations 4 | . . . . . 1 . 1 . 1 . 1 . . . . . . . . . . Recycling Units 1 | . 1 . . . . . . . . . . . . . . . . . . . . Scanalyzers 2 | . . . . . . . 1 . . . . . . . 1 . . . . . . Garrison Access 9 | . . . . . 1 . 1 . 2 . 2 . . . 1 . . . . . 2 Total Hacks 148 | . 11 1 1 . 5 . 18 . 8 . 14 . 25 . 6 . 1 16 3 . 39 Successful 92 | . 5 1 1 . 3 . 10 . 8 . 11 . 25 . 5 . 1 4 1 . 17 Failed 56 | . 6 . . . 2 . 8 . . . 3 . . . 1 . . 12 2 . 22 Catastrophic 11 | . . . . . . . 1 . . . 2 . . . . . . 1 1 . 6 Database Lockouts . | . . . . . . . . . . . . . . . . . . . . . . Manual 60 | . 6 . . . 2 . 8 . 1 . 3 . . . . . . 16 4 . 20 Terminals 84 | . 9 . . . 2 . 10 . . . 5 . . . 2 . 1 16 3 . 36 Fabricators 5 | . . . . . . . . . 2 . 3 . . . . . . . . . . Repair Stations 8 | . . . . . 2 . 2 . 2 . 2 . . . . . . . . . . Recycling Units 2 | . 2 . . . . . . . . . . . . . . . . . . . . Scanalyzers 7 | . . . . . . . 5 . . . . . . . 2 . . . . . . Garrison Access 15 | . . . . . 1 . 1 . 4 . 4 . . . 2 . . . . . 3 Terminal Hacks 52 | . 4 1 1 . . . 3 . . . 2 . 25 . 1 . 1 3 1 . 10 Record 12 | . . . 1 . . . . . . . . . 11 . . . . . . . . Part Schematic 5 | . . . . . . . . . . . . . 5 . . . . . . . . Robot Schematic 6 | . . . . . . . . . . . . . 6 . . . . . . . . Prototype ID Bank 4 | . . . . . . . 1 . . . . . 3 . . . . . . . . Open Door 2 | . . 1 . . . . . . . . . . . . . . 1 . . . . Branch Access Points 2 | . . . . . . . . . . . 1 . . . 1 . . . . . . Machine Index 1 | . . . . . . . . . . . . . . . . . . . . . 1 Terminal Index 1 | . . . . . . . . . . . . . . . . . . . . . 1 Unreport Threat 10 | . 1 . . . . . 2 . . . 1 . . . . . . 2 1 . 3 Transport Status 1 | . 1 . . . . . . . . . . . . . . . . . . . . Recall Investigation 1 | . . . . . . . . . . . . . . . . . . . . . 1 Recall Extermination 1 | . . . . . . . . . . . . . . . . . . . . . 1 Recall Reinforcements 1 | . . . . . . . . . . . . . . . . . . 1 . . . Hauler Manifests 1 | . 1 . . . . . . . . . . . . . . . . . . . . Registered Components 1 | . . . . . . . . . . . . . . . . . . . . . 1 Zone Layout 3 | . 1 . . . . . . . . . . . . . . . . . . . 2 Fabricator Hacks 5 | . . . . . . . . . 2 . 3 . . . . . . . . . . Network Status 1 | . . . . . . . . . . . 1 . . . . . . . . . . Load Schematic 2 | . . . . . . . . . 1 . 1 . . . . . . . . . . Build 2 | . . . . . . . . . 1 . 1 . . . . . . . . . . Repair Station Hacks 8 | . . . . . 2 . 2 . 2 . 2 . . . . . . . . . . Scan Component 4 | . . . . . 1 . 1 . 1 . 1 . . . . . . . . . . Repair 4 | . . . . . 1 . 1 . 1 . 1 . . . . . . . . . . Recycling Unit Hacks . | . . . . . . . . . . . . . . . . . . . . . . Scanalyzer 6 | . . . . . . . 4 . . . . . . . 2 . . . . . . Insert Component 3 | . . . . . . . 2 . . . . . . . 1 . . . . . . Analyze 3 | . . . . . . . 2 . . . . . . . 1 . . . . . . Garrison Access Hacks 14 | . . . . . 1 . 1 . 3 . 4 . . . 2 . . . . . 3 Unlock Access 3 | . . . . . 1 . 1 . . . . . . . 1 . . . . . . Seal Access 5 | . . . . . . . . . 1 . 2 . . . . . . . . . 2 Coupler Status 6 | . . . . . . . . . 2 . 2 . . . 1 . . . . . 1 Unauthorized Hacks 18 | . 3 . . . . . . . 2 . . . . . . . . 3 . . 10 Terminals 5 | . . . . . . . . . . . . . . . . . . 1 . . 4 Track 2 | . . . . . . . . . . . . . . . . . . . . . 2 Botnet 1 | . . . . . . . . . . . . . . . . . . . . . 1 Disrupt 1 | . . . . . . . . . . . . . . . . . . 1 . . . Operators 1 | . . . . . . . . . . . . . . . . . . . . . 1 Fabricators . | . . . . . . . . . . . . . . . . . . . . . . Repair Stations . | . . . . . . . . . . . . . . . . . . . . . . Recycling Units 1 | . 1 . . . . . . . . . . . . . . . . . . . . Tunnel 1 | . 1 . . . . . . . . . . . . . . . . . . . . Scanalyzers . | . . . . . . . . . . . . . . . . . . . . . . Garrison Access 1 | . . . . . . . . . 1 . . . . . . . . . . . . Eject 1 | . . . . . . . . . 1 . . . . . . . . . . . . Data Cores Recovered 1 | . . . . . . . . . . . 1 . . . . . . . . . . Used . | . . . . . . . . . . . . . . . . . . . . . . Hacking Detections 30 | . 2 . . . 1 . 5 . 2 . 6 . . . 2 . . 6 2 . 4 Full Trace Events 2 | . 1 . . . . . . . . . 1 . . . . . . . . . . Feedback Events . | . . . . . . . . . . . . . . . . . . . . . . Feedback Blocked . | . . . . . . . . . . . . . . . . . . . . . . Robot Schematics Acquired 6 | . . . . . . . . . . . . . 6 . . . . . . . . Robots Built . | . . . . . . . . . . . . . . . . . . . . . . Matter . | . . . . . . . . . . . . . . . . . . . . . . Time . | . . . . . . . . . . . . . . . . . . . . . . Total Robot Build Rating . | . . . . . . . . . . . . . . . . . . . . . . Part Schematics Acquired 8 | . . . . . . . 2 . . . . . 5 . 1 . . . . . . Parts Built 3 | . . . . . . . . . 1 . 2 . . . . . . . . . . Matter 453 | . . . . . . . . . 285 . 168 . . . . . . . . . . Time 236 | . . . . . . . . . 152 . 84 . . . . . . . . . . Total Part Build Rating 13 | . . . . . . . . . 5 . 8 . . . . . . . . . . Parts Repaired 4 | . . . . . 1 . 1 . 1 . 1 . . . . . . . . . . Time 188 | . . . . . 80 . 38 . 44 . 26 . . . . . . . . . . Parts Recycled . | . . . . . . . . . . . . . . . . . . . . . . Recycled Matter . | . . . . . . . . . . . . . . . . . . . . . . Retrieved Matter . | . . . . . . . . . . . . . . . . . . . . . . Retrieved Components . | . . . . . . . . . . . . . . . . . . . . . . Parts Scanalyzed 3 | . . . . . . . 2 . . . . . . . 1 . . . . . . Part Schematics Acquired 3 | . . . . . . . 2 . . . . . . . 1 . . . . . . Parts Damaged . | . . . . . . . . . . . . . . . . . . . . . . Bothacking | -11 -10 -10 -10 -9 -8 -8 -8 -8 -7 -7 -7 -7 -7 -6 -6 -6 -5 -5 -5 -5 -5 ------------ Run | Scr Mat Min Exi Min Mat Gar Mat Gar Fac Was Fac Low Dat Pro Fac Gar Fac Ext Cet Arc Hub Used RIF Installer 3 | . . . . . . 1 . 1 . . . . . . . 1 . . . . . Robot Detection 1 | . . . . . . . . . . . . . . . . 1 . . . . . Alert ID Control 1 | . . . . . . . . 1 . . . . . . . . . . . . . Robots Hacked 33 | . . . . . . 1 5 2 8 6 1 . . . . 2 . 6 1 1 . Non-combat 3 | . . . . . . . . . 2 . . . . . . . . . . 1 . Combat 30 | . . . . . . 1 5 2 6 6 1 . . . . 2 . 6 1 . . Robot Hacks Applied 37 | . . . . . . 1 5 2 8 8 1 . . . . 2 . 6 1 3 . parse_system 2 | . . . . . . . . . . . . . . . . . . 2 . . . find_chute 1 | . . . . . . . . . 1 . . . . . . . . . . . . ignore_parts 1 | . . . . . . . . . 1 . . . . . . . . . . . . purge_threat 2 | . . . . . . . . . . . . . . . . . . . . 2 . block_reporting 1 | . . . . . . . . . . . . . . . . . . . . 1 . ignore_targets 8 | . . . . . . . . . . 8 . . . . . . . . . . . overwrite_iff 2 | . . . . . . . 1 . 1 . . . . . . . . . . . . streamctrl_high 1 | . . . . . . . . . . . . . . . . . . 1 . . . formatsys_high 19 | . . . . . . 1 4 2 5 . 1 . . . . 2 . 3 1 . . Relay Couplers Released 35 | . . . . . . 8 . 11 7 . . . . . . 9 . . . . . Ejected 4 | . . . . . . . . . 4 . . . . . . . . . . . . Machine Destruction 28 | . . . . . . 8 . 11 . . . . . . . 9 . . . . . Programmers 3 | . . . . . . . . . 3 . . . . . . . . . . . . Attached 21 | . . . . . . 1 3 3 3 3 1 . . . . 2 . 2 1 1 1 Robots Rewired 22 | . . . . . . . . . . . . . . . . . . 22 . . . Allies Hacked 1 | . . . . . . . . . . . . . . . . . . 1 . . . Hacks Repelled . | . . . . . . . . . . . . . . . . . . . . . . Allies | -11 -10 -10 -10 -9 -8 -8 -8 -8 -7 -7 -7 -7 -7 -6 -6 -6 -5 -5 -5 -5 -5 -------- Run | Scr Mat Min Exi Min Mat Gar Mat Gar Fac Was Fac Low Dat Pro Fac Gar Fac Ext Cet Arc Hub Total Allies 64 | . . . . 4 . 1 5 2 6 . 1 . . . . 2 . 37 6 . . Largest Group 16 | . . . . 4 . 1 2 1 2 . 1 1 . . . 1 . 16 16 11 9 Highest-Rated Group 763 | . . . . 71 . 16 36 16 45 . 32 32 . . . 32 . 618 763 665 609 Highest-Rated Ally 156 | . . . . 31 . 16 21 16 32 . 32 32 . . . 32 . 156 156 94 94 Total Orders 6 | . . . . . . . . . . . . . . . 1 . 1 . 4 . . GOTO 2 | . . . . . . . . . . . . . . . . . . . 2 . . FOLLOW 2 | . . . . . . . . . . . . . . . . . . . 2 . . EXPLORE 2 | . . . . . . . . . . . . . . . 1 . 1 . . . . Ally Attacks 388 | . . . . 10 . 9 26 11 33 . . 2 . . . 3 . 128 86 31 49 Total Damage 8099 | . . . . 108 . 92 326 205 568 . . 48 . . . 110 . 2280 1962 887 1513 Kills 61 | . . . . 1 . 2 3 3 4 . . 1 . . . . . 15 17 4 11 Allies Corrupted 5 | . . . . . . . . . 1 . . . . . 1 . . . . . 3 Allies Melted . | . . . . . . . . . . . . . . . . . . . . . . Intel | -11 -10 -10 -10 -9 -8 -8 -8 -8 -7 -7 -7 -7 -7 -6 -6 -6 -5 -5 -5 -5 -5 ------- Run | Scr Mat Min Exi Min Mat Gar Mat Gar Fac Was Fac Low Dat Pro Fac Gar Fac Ext Cet Arc Hub Robot Analysis Total . | . . . . . . . . . . . . . . . . . . . . . . Derelict Logs Recovered 2 | . . 1 . 1 . . . . . . . . . . . . . . . . . Drone Launches 4 | . . . . . . . . . . . . . . . 2 . 2 . . . . Drone Recoveries . | . . . . . . . . . . . . . . . . . . . . . . Exploration | -11 -10 -10 -10 -9 -8 -8 -8 -8 -7 -7 -7 -7 -7 -6 -6 -6 -5 -5 -5 -5 -5 ------------- Run | Scr Mat Min Exi Min Mat Gar Mat Gar Fac Was Fac Low Dat Pro Fac Gar Fac Ext Cet Arc Hub Turns Passed 18717 | 45 373 1191 264 325 917 1100 1342 812 1702 1054 1555 34 511 320 1783 650 506 1368 551 143 2171 Spaces Moved 7968 | 23 164 614 147 212 335 557 526 397 643 464 656 15 86 193 860 281 193 561 223 63 755 Core . | . . . . . . . . . . . . . . . . . . . . . . Treads 928 | 3 164 614 147 . . . . . . . . . . . . . . . . . . Legs 34 | 20 . . . . 14 . . . . . . . . . . . . . . . . Wheels 7006 | . . . . 212 321 557 526 397 643 464 656 15 86 193 860 281 193 561 223 63 755 Hover . | . . . . . . . . . . . . . . . . . . . . . . Flight . | . . . . . . . . . . . . . . . . . . . . . . Fastest Speed 110 | 120 160 180 180 110 120 150 150 150 150 160 160 160 160 160 170 170 180 160 170 180 160 Average Speed 168 | 125 167 180 180 113 161 154 158 157 163 169 174 169 160 160 178 179 180 171 177 180 175 Slowest Speed 300 | 160 180 180 180 150 300 160 160 160 180 180 180 180 160 160 180 180 180 180 180 180 220 Overloaded Moves . | . . . . . . . . . . . . . . . . . . . . . . Propulsion Burnouts . | . . . . . . . . . . . . . . . . . . . . . . Robots Hopped . | . . . . . . . . . . . . . . . . . . . . . . Cave-ins Triggered 1 | . . . . . . . . . . . . . . . . . . . . . 1 Exploration Rate (%) 49 | 3 30 99 49 38 32 62 57 59 24 96 26 3 71 37 32 53 10 63 81 73 85 Regions Visited 21 Branch Regions 10 Pre-discovered Areas 4 | . 1 1 1 . . . . . . . . . 1 . . . . . . . . Known Exits Taken 9 | . . . . . 1 . 1 . . . 1 . . 1 1 . 1 1 1 1 . Unknown Exits Taken 7 | 1 1 1 1 1 . . . . . . . 1 1 . . . . . . . . Scrap Searched 3 | . . 1 . 1 . . . . . . . . . 1 . . . . . . . Spaces Dug 148 | . 1 . . 8 11 1 14 . 8 . 26 . . 4 19 . 8 16 . . 32 Terrain Destroyed 900 | . 1 8 . 52 49 20 14 . 16 . 29 . . 4 19 2 8 16 10 . 652 Melee 137 | . 1 . . . 9 . 14 . 8 . 26 . . 4 19 . 8 16 . . 32 Projectile 3 | . . . . 1 . . . . . . . . . . . . . . . . 2 AOE 760 | . . 8 . 51 40 20 . . 8 . 3 . . . . 2 . . 10 . 618 Actions | -11 -10 -10 -10 -9 -8 -8 -8 -8 -7 -7 -7 -7 -7 -6 -6 -6 -5 -5 -5 -5 -5 --------- Run | Scr Mat Min Exi Min Mat Gar Mat Gar Fac Was Fac Low Dat Pro Fac Gar Fac Ext Cet Arc Hub Total 11424 | 31 222 657 148 261 564 723 899 518 1035 609 910 21 460 197 1035 382 304 818 317 90 1223 Wait 1487 | . 23 3 . 5 85 67 238 50 176 4 118 . 375 . 95 1 81 65 4 21 76 Move 7947 | 22 163 613 146 211 334 555 526 396 643 463 655 14 85 192 859 280 192 560 222 62 754 Hop . | . . . . . . . . . . . . . . . . . . . . . . Pick Up 179 | . 10 7 1 5 22 13 14 6 21 5 13 1 . . 8 8 2 6 10 . 27 Fast Attach 52 | 1 . 1 . 2 5 . 5 . 6 2 2 . . . 7 . . 6 5 . 10 Attach 126 | . . 2 . 5 13 6 4 3 20 13 5 2 . 1 2 3 2 3 4 1 37 Detach 64 | . . 1 . 1 6 . 4 1 9 15 1 . . . 3 2 . . 5 . 16 Swap 237 | 2 5 4 . 8 14 14 19 13 23 2 9 . . . 10 12 2 28 20 3 49 Drop 121 | 2 1 1 1 3 4 8 14 4 . 9 13 2 . . 13 4 . 8 16 . 18 Fire 509 | 4 16 18 . 20 34 50 36 36 48 9 10 . . . 2 28 . 88 30 3 77 Melee 613 | . 3 1 . . 47 1 35 7 85 87 84 2 . 4 35 4 24 37 1 . 156 Ram 4 | . . . . 1 . . . . 1 . . . . . . . . . . . 2 Kick . | . . . . . . . . . . . . . . . . . . . . . . Crush 7 | . 1 6 . . . . . . . . . . . . . . . . . . . Escape Stasis 65 | . . . . . . 8 . . . . . . . . . 40 . 16 . . 1 Rewire 11 | . . . . . . 1 4 2 3 . . . . . . . . 1 . . . Trap . | . . . . . . . . . . . . . . . . . . . . . . Miscellaneous 2 | . . . . . . . . . . . . . . . 1 . 1 . . . . Route ------- -11/Scrapyard -10/Materials -10/Mines (discovered 3 exits: [*Mat x2] / *Exi) -10/Exiles -9/Mines -8/Materials -8/Garrison (discovered 2 exits: *Mat x2) -8/Materials (discovered 2 exits: *Fac / Gar) -8/Garrison (discovered 2 exits: *Fac x2) -7/Factory -7/Waste -7/Factory (discovered 3 exits: *Fac / *Low x2) -7/Lower Caves -7/Data Miner -6/Proximity Caves -6/Factory (discovered 6 exits: *Fac x3 / Low x2 / Gar) -6/Garrison -5/Factory (discovered 3 exits: *Fac / *Upp / *Ext) -5/Extension (discovered 2 exits: *Fac / *Cet) -5/Cetus (discovered 2 exits: *Fac / *Arc) -5/Archives -5/Hub_04(d) (discovered 3 exits: *Fac x3) History --------- Turn | Location | Event 13 | -11/Scrapyard | Discovered new exit (range 3) 46 | -11/Scrapyard | Entered Materials 286 | -10/Materials | Discovered new exit (range 7) 419 | -10/Materials | Entered Mines 557 | -10/Mines | Build established: Hauler-Mutant 621 | -10/Mines | Discovered new exit (range 11) 638 | -10/Mines | Met a Derelict shopkeep closing up shop 771 | -10/Mines | Assisted by bots powering up and referring to "LRC-V3" 795 | -10/Mines | Destroyed YI-UF0 802 | -10/Mines | Found Prototype Storage 869 | -10/Mines | Learned Materials emergency access door positions 1000 | -10/Mines | A weapon hastily lodged in a ceiling crevice suddenly fell to the ground 1087 | -10/Mines | Discovered new exit (range 12) 1232 | -10/Mines | Learned location of Storage (-9) 1463 | -10/Mines | Deemed a non-threat by the Exiles lab entrance 1463 | -10/Mines | Discovered new exit (range 5) 1610 | -10/Mines | Entered Exiles 1654 | -10/Exiles | Met 8R-AWN 1684 | -10/Exiles | Met EX-HEX 1754 | -10/Exiles | Met EX-DEC 1763 | -10/Exiles | Learned location of Zion (-6) 1849 | -10/Exiles | Discovered new exit (range 15) 1874 | -10/Exiles | Entered Mines 1898 | -9/Mines | Escorted by a lone wolf Derelict 1910 | -9/Mines | Destroyed 7 combat bots 1911 | -9/Mines | Lost 3 parts (2n1w) 1962 | -9/Mines | Learned Materials garrison access intel 1970 | -9/Mines | Assisted by bots powering up and referring to "LRC-V3" 2040 | -9/Mines | Discovered new exit (range 6) 2076 | -9/Mines | Found a damaged Exp. Sensor Array with a note attached 2078 | -9/Mines | Found Prototype Device 2093 | -9/Mines | Assembled infested the area 2199 | -9/Mines | Entered Materials 2199 | -8/Materials | Evolved 4 slots: Utility x4 2201 | -8/Materials | Loaded intel: 1 garrison access location 2300 | -8/Materials | Lost 3 parts (1p2w) 2453 | -8/Materials | Identified Exp. Sensor Array 2529 | -8/Materials | Lost 3 parts (1n2u) 2877 | -8/Materials | Core integrity fell below 50% 2995 | -8/Materials | Repaired Faulty Exp. Sensor Array 3085 | -8/Materials | Identified exit to Garrison 3116 | -8/Materials | Entered Garrison 3179 | -8/Garrison | Triggered checkpoint 3183 | -8/Garrison | Triggered checkpoint 3329 | -8/Garrison | Lost 3 parts (1p1u1w) 3424 | -8/Garrison | Discovered new exit (range 11) 3619 | -8/Garrison | Discovered new exit (range 12) 3645 | -8/Garrison | Installed Relay Interface Framework 3713 | -8/Garrison | Triggered checkpoint 3769 | -8/Garrison | Garrison Relay disabled 4034 | -8/Garrison | Triggered checkpoint 4067 | -8/Garrison | Garrison Relay disabled 4216 | -8/Garrison | Entered Materials 4216 | -8/Materials | Accompanied by 1 ally 4372 | -8/Materials | Build established: Bothacker-Mutant 4614 | -8/Materials | Repaired Shock Bomb Launcher? 4748 | -8/Materials | Build established: Hauler-Mutant 4854 | -8/Materials | Discovered new exit (range 12) 4874 | -8/Materials | Identified YI-UF0's Bottomless Matter Pit 5558 | -8/Materials | Identified exit to Garrison 5558 | -8/Materials | Entered Garrison 5566 | -8/Garrison | Expanded RIF knowledge: Alert ID Control 5691 | -8/Garrison | Triggered checkpoint 5792 | -8/Garrison | Garrison Relay disabled 5860 | -8/Garrison | Triggered checkpoint 5927 | -8/Garrison | Discovered new exit (range 12) 6006 | -8/Garrison | Triggered checkpoint 6092 | -8/Garrison | Garrison Relay disabled 6175 | -8/Garrison | Triggered checkpoint 6245 | -8/Garrison | Discovered new exit (range 9) 6258 | -8/Garrison | Triggered checkpoint 6304 | -8/Garrison | Garrison Relay disabled 6370 | -8/Garrison | Entered Factory 6370 | -7/Factory | Accompanied by 1 ally 6370 | -7/Factory | Evolved 2 slots: Utility x2 6387 | -7/Factory | Build established: Bothacker-Mutant 6865 | -7/Factory | Repaired Arm. Huge Wheel 6980 | -7/Factory | Build established: Hauler-Mutant 7218 | -7/Factory | Fabricated Exp. Sensor Array? 7233 | -7/Factory | Lost 4 parts (1p2u1w) 7400 | -7/Factory | Lost 4 parts (3u1w) 7639 | -7/Factory | Core integrity fell below 50% 7792 | -7/Factory | Lost 3 parts (1p2w) 7817 | -7/Factory | Build established: Bothacker-Mutant 8072 | -7/Factory | Sucked down chute 8072 | -7/Factory | Entered Waste 8087 | -7/Waste | EMP discharged 8087 | -7/Waste | System corruption reached 10% 8088 | -7/Waste | Spotted C-40 Crusher 8109 | -7/Waste | Spotted C-40 Crusher 8169 | -7/Waste | Spotted C-40 Crusher 8187 | -7/Waste | EMP discharged 8215 | -7/Waste | Spotted C-40 Crusher 8243 | -7/Waste | Destroyed C-40 Crusher 8253 | -7/Waste | Found Damper Plating 8261 | -7/Waste | Destroyed C-40 Crusher 8287 | -7/Waste | EMP discharged 8327 | -7/Waste | Destroyed C-40 Crusher 8332 | -7/Waste | Found Damper Plating 8349 | -7/Waste | Destroyed C-40 Crusher 8354 | -7/Waste | Found Damper Plating 8377 | -7/Waste | Spotted C-40 Crusher 8387 | -7/Waste | EMP discharged 8487 | -7/Waste | EMP discharged 8587 | -7/Waste | EMP discharged 8595 | -7/Waste | Spotted C-40 Crusher 8687 | -7/Waste | EMP discharged 8726 | -7/Waste | Build established: Hauler-Mutant 8769 | -7/Waste | Destroyed C-40 Crusher 8782 | -7/Waste | Found Damper Plating 8787 | -7/Waste | EMP discharged 8887 | -7/Waste | EMP discharged 8987 | -7/Waste | EMP discharged 9087 | -7/Waste | EMP discharged 9106 | -7/Waste | Discovered new exit (range 11) 9126 | -7/Waste | Entered Factory 9358 | -7/Factory | Identified exit to Lower Caves 9569 | -7/Factory | Discovered new exit (range 4) 10294 | -7/Factory | Fabricated Arm. Huge Wheel? 10419 | -7/Factory | Local fabrication network quarantined 10484 | -7/Factory | Repaired Hcp. Storage Unit 10681 | -7/Factory | Entered Lower Caves 10681 | -7/Lower Caves | Accompanied by 1 ally 10682 | -7/Lower Caves | A Derelict revealed a hidden shortcut to meet someone special 10715 | -7/Lower Caves | Entered Data Miner 10715 | -7/Data Miner | Discovered new exit (range 6) 11121 | -7/Data Miner | Met Data Miner 11159 | -7/Data Miner | Learned location of Section 7 (-2) 11159 | -7/Data Miner | Acquired the access code to Warlord's prototype stash 11188 | -7/Data Miner | Received God Mode back door access code from Data Miner 11226 | -7/Data Miner | Entered Proximity Caves 11452 | -6/Proximity Caves | Discovered new exit (range 3) 11455 | -6/Proximity Caves | Identified exit to Factory 11546 | -6/Proximity Caves | Entered Factory 11546 | -6/Factory | Evolved 2 slots: Utility x2 11974 | -6/Factory | Discovered new exit (range 8) 11986 | -6/Factory | Identified exit to Factory 12569 | -6/Factory | Discovered exit to Factory (range 39) 12607 | -6/Factory | Identified exit to Lower Caves 12873 | -6/Factory | Discovered exit to Factory (range 9) 13319 | -6/Factory | Identified exit to Garrison 13329 | -6/Factory | Entered Garrison 13366 | -6/Garrison | Triggered checkpoint 13434 | -6/Garrison | Garrison Relay disabled 13511 | -6/Garrison | Triggered checkpoint 13591 | -6/Garrison | Triggered checkpoint 13593 | -6/Garrison | Triggered checkpoint 13663 | -6/Garrison | Destroyed 8 combat bots 13736 | -6/Garrison | Discovered exit to Factory (range 8) 13760 | -6/Garrison | Expanded RIF knowledge: Robot Detection 13820 | -6/Garrison | Triggered checkpoint 13872 | -6/Garrison | Garrison Relay disabled 13979 | -6/Garrison | Entered Factory 13979 | -5/Factory | Evolved 2 slots: Utility x2 14092 | -5/Factory | Discovered new exit (range 15) 14122 | -5/Factory | Identified exit to Upper Caves 14241 | -5/Factory | Discovered new exit (range 70) 14337 | -5/Factory | Build established: Bothacker-Assassin 14447 | -5/Factory | Discovered new exit (range 10) 14483 | -5/Factory | Identified exit to Extension 14485 | -5/Factory | Entered Extension 15076 | -5/Extension | Rescued a captive Derelict 15207 | -5/Extension | Rescued a captive Derelict 15208 | -5/Extension | Rescued a captive Derelict 15222 | -5/Extension | Rescued a captive Derelict 15239 | -5/Extension | Rescued a captive Derelict 15318 | -5/Extension | Rescued a captive Derelict 15643 | -5/Extension | Rescued a captive Derelict 15644 | -5/Extension | Rescued A7 15645 | -5/Extension | Rescued a captive Derelict 15696 | -5/Extension | Build established: Bothacker-Mutant 15742 | -5/Extension | Rescued a captive Derelict 15743 | -5/Extension | Rescued a captive Derelict 15812 | -5/Extension | Discovered new exit (range 10) 15814 | -5/Extension | Discovered new exit (range 6) 15836 | -5/Extension | Identified exit to Cetus 15853 | -5/Extension | Entered Cetus 15853 | -5/Cetus | Accompanied by 16 allies 15858 | -5/Cetus | Acquired a Cetus Manufacturing Module code from A7 15877 | -5/Cetus | Spotted Cetus Guard 15877 | -5/Cetus | Spotted Cetus Guard 15881 | -5/Cetus | Spotted Cetus Guard 15882 | -5/Cetus | Spotted Cetus Guard 15887 | -5/Cetus | Allies destroyed Cetus Guard 15892 | -5/Cetus | Allies destroyed Cetus Guard 15901 | -5/Cetus | Allies destroyed Cetus Guard 15903 | -5/Cetus | Allies destroyed Cetus Guard 16109 | -5/Cetus | Started Cetus Manufacturing Module 16129 | -5/Cetus | Escorted A7 to Cetus Mainframe 16134 | -5/Cetus | Manufactured an Enhanced Grunt 16140 | -5/Cetus | Destroyed A7 16141 | -5/Cetus | Extracted ID and sensor layout for unrecognized location from A7's data core 16147 | -5/Cetus | Found Prototype Protection 16147 | -5/Cetus | Identified Med. Regenerative Plating 16159 | -5/Cetus | Manufactured an Enhanced Grunt 16184 | -5/Cetus | Manufactured an Enhanced Grunt 16209 | -5/Cetus | Manufactured an Enhanced Grunt 16216 | -5/Cetus | Discovered new exit (range 16) 16234 | -5/Cetus | Manufactured an Enhanced Grunt 16255 | -5/Cetus | Spotted Cetus Guard 16255 | -5/Cetus | Spotted Cetus Guard 16263 | -5/Cetus | Destroyed Cetus Guard 16263 | -5/Cetus | Destroyed Cetus Guard 16263 | -5/Cetus | Spotted Cetus Guard 16263 | -5/Cetus | Spotted Cetus Guard 16267 | -5/Cetus | Destroyed Cetus Guard 16269 | -5/Cetus | Allies destroyed Cetus Guard 16284 | -5/Cetus | Discovered new exit (range 16) 16296 | -5/Cetus | Met Revision 17 16395 | -5/Cetus | Identified exit to Archives 16404 | -5/Cetus | Entered Archives 16404 | -5/Archives | Accompanied by 11 allies 16486 | -5/Archives | Unable to access archive contents 16509 | -5/Archives | Discovered new exit (range 14) 16533 | -5/Archives | Identified exit to Hub_04(d) 16547 | -5/Archives | Entered Hub_04(d) 16547 | -5/Hub_04(d) | Accompanied by 9 allies 16670 | -5/Hub_04(d) | Crushed by falling debris 16711 | -5/Hub_04(d) | Discovered new exit (range 14) 16764 | -5/Hub_04(d) | Identified exit to Factory 16956 | -5/Hub_04(d) | Build established: Bothacker-Assassin 17118 | -5/Hub_04(d) | Network Hub disabled 17118 | -5/Hub_04(d) | Network Hub disabled 17118 | -5/Hub_04(d) | Spotted Lightning 17118 | -5/Hub_04(d) | Spotted Lightning 17118 | -5/Hub_04(d) | Spotted Lightning 17118 | -5/Hub_04(d) | Spotted Lightning 17118 | -5/Hub_04(d) | Spotted Lightning 17118 | -5/Hub_04(d) | Spotted Lightning 17119 | -5/Hub_04(d) | Destroyed Lightning 17128 | -5/Hub_04(d) | Spotted Lightning 17140 | -5/Hub_04(d) | Destroyed 9 combat bots 17147 | -5/Hub_04(d) | First assault squad dispatched 17160 | -5/Hub_04(d) | Destroyed Lightning 17165 | -5/Hub_04(d) | Spotted Lightning 17165 | -5/Hub_04(d) | Spotted Lightning 17165 | -5/Hub_04(d) | Spotted B-75 Beast 17284 | -5/Hub_04(d) | Destroyed Lightning 17290 | -5/Hub_04(d) | Found Prototype Device 17290 | -5/Hub_04(d) | Identified EM Dispersion Field 17307 | -5/Hub_04(d) | Destroyed Lightning 17330 | -5/Hub_04(d) | Destroyed B-75 Beast 17390 | -5/Hub_04(d) | Found Prototype Energy Cannon 17407 | -5/Hub_04(d) | Destroyed Lightning 17426 | -5/Hub_04(d) | Found EM Dispersion Field 17427 | -5/Hub_04(d) | Spotted Lightning 17437 | -5/Hub_04(d) | Build established: Bothacker-Mutant 17454 | -5/Hub_04(d) | Spotted Lightning 17471 | -5/Hub_04(d) | Destroyed Lightning 17476 | -5/Hub_04(d) | Incoming assault squad redirected 17476 | -5/Hub_04(d) | Found Prototype Energy Cannon 17484 | -5/Hub_04(d) | Found Prototype Device 17484 | -5/Hub_04(d) | Identified Exp. Phase Shifter 17562 | -5/Hub_04(d) | Destroyed Lightning 17572 | -5/Hub_04(d) | Found Prototype Energy Cannon 17604 | -5/Hub_04(d) | Found Prototype Energy Cannon 17762 | -5/Hub_04(d) | Spotted Lightning 17766 | -5/Hub_04(d) | Incoming assault squad redirected 17767 | -5/Hub_04(d) | Incoming assault squad redirected 17806 | -5/Hub_04(d) | Destroyed Lightning 17864 | -5/Hub_04(d) | Destroyed Lightning 17876 | -5/Hub_04(d) | Found Prototype Energy Cannon 17958 | -5/Hub_04(d) | Discovered exit to Factory (range 8) 18041 | -5/Hub_04(d) | Lost 5 parts (1p2u2w) 18046 | -5/Hub_04(d) | Destroyed Lightning 18066 | -5/Hub_04(d) | Found Exp. Phase Shifter 18186 | -5/Hub_04(d) | Network Hub disabled 18255 | -5/Hub_04(d) | Discovered exit to Factory (range 12) 18277 | -5/Hub_04(d) | Identified EMDS (x5) 18311 | -5/Hub_04(d) | System corruption reached 10% 18367 | -5/Hub_04(d) | Incoming assault squad redirected 18383 | -5/Hub_04(d) | Lost 3 parts (1p1u1w) 18416 | -5/Hub_04(d) | Incoming assault squad redirected 18519 | -5/Hub_04(d) | Network Hub disabled 18676 | -5/Hub_04(d) | Incoming assault squad redirected 18718 | -5/Hub_04(d) | Self-destructed Last Messages --------------- 18706_ System corrupted: Matter fused (-8). 18707_ EMDS Slug penetrates G-67 Veteran. 18707_ G-67 Veteran destroyed. 18707_ M-28 Smith suffers critical hit. 18707_ Destroyed Wheel. 18709_ K-01 Serf collects debris. 18709_ EMDS Slug penetrates B-60 Warrior. 18711_ EMDS destroyed. 18711_ System corrupted by crushing effect (+2). 18712_ Exp. Sensor Array destroyed. 18712_ EMDS Slug penetrates B-60 Warrior. 18712_ B-60 Warrior suffers critical hit. 18713_ B-60 Warrior system terminally corrupted. 18713_ K-01 Serf collects debris. 18714_ EMDS Slug penetrates Wall. 18716_ Adv. Signal Interpreter destroyed. 18716_ System corrupted by crushing effect (+5). 18716_ K-01 Serf collects debris. 18716_ System corrupted: EMDS targeting data glitched. 18716_ EMDS Slug penetrates B-60 Warrior. Map ----- +----------------------------------------------------+ | ????????????????????????????????????????## | | ????????????????????????????????????????? " " " " | | ?????????????????????????????????????????# " " " " | | ?????????????????????????????????????????# " " " " | | ?????????????????????????????????????????# | | ?????????????????????????????????????????# | | ??????????????????????????????????????????? ?? | | ??????????????????????????????????????#######+#### | | ???????????????????????################"""" """ | | ???????????????#???????# " | | ???????????????????????# """" """" ##"" "" < | | ???????????????????????# """" """" ####*=" = """ | | ???????????????????????# """" """" ####[[""%!## | | ???????????????????????# """" """" #%*=!%[#^ #### | | ????#??????????????????# # =[ [[" |" | | ?????????????????????### [ """ """ # """|# !# | | ?#??##?????? ???? ???# " *"""" """" # """" #= # | | ? ? ???????"???????### """" """" # """" # # = | | " " " ????????????????# """" """" " # # | | " " " #? ?????????????# ######## [ | | " " " #??????????????# [ #??????# ""## | | #??????????????#########+#####?????## ##?? | | " " " ##????##+####+######## ########## ### | | " " " #?????# =%!g[= " " | | " " " +?? [%=b= "T " | | #?????###+####/###@### ########## ### | | #???????? ???????#k####+#######????##+###?? | | #????? ???? #????#!!* #????? ????? | | +????????????????#[= #????? ????? | | ####"####??#?????? ?????#*%% +%"+????????? | | ##### #????? ?????????#=! ###?????????? | | # < #?#?? ??? ???? # #???????????? | | # ###??#?????#?? ?# #???????????? | | # #????#???#??????# #???????????? | | # #??????????? ? ?# [#???????????? | | / #?#?#??????#????# #???????????? | | # #?????????###???# #???????????? | | # ##????#??#??#???# #???????????? | | # T#??????##????### ! #???????????? | | =" ##????????#??#??##############???????????? | | ##+## ###########?????##????#???????#######????? | | ##!## # #??????#?????#?????# #"""?? | | ?# ## # """ """ #????##??#????#????#=!! #"""?? | | ## ## # #?????????????????##=!! # ?? | | ?# ## # """ """ #?????????????????# =!! % # ?? | | ?# ## + #################### ####?? | | ?# ## # " " # # # """ #????? | | ##+## #! ""G"" ########## # ###### | | !## # ##???????# # """ / | | ## ###########?#??????#"""" #w #####? | +----------------------------------------------------+ Best States ------------- Heat Dissipation 61 Coolant Potential 80 Energy Generation 25 Energy Capacity 950 Matter Stores 300 Matter Capacity 300 Sight Range 16 Robot Scan Range 30 Terrain Scan Range 24 Terrain Scan Density 10 Armor Coverage 1650 Resistance: KI 30 Resistance: TH 15 Resistance: EM 90 Weapon Shielding 66 Melee Speed Boost 20 Phase Shifting 20 Evasion (%) 60 Recoil Reduction 2 Offensive Hacking 14 Defensive Hacking 14 Item Schematics ----------------- Arm. Huge Wheel | -8/Materials | Scanalyzed Exp. Sensor Array | -8/Materials | Scanalyzed Combat Drone Bay | -7/Data Miner | Free Lgt. Regenerative Plating | -7/Data Miner | Free Tactical Coordination Suite | -7/Data Miner | Free Exp. Transmission Jammer | -7/Data Miner | Free Plasma Sword | -7/Data Miner | Free Hcp. Storage Unit | -6/Factory | Scanalyzed Robot Schematics ------------------ S-27 Virus | -7/Data Miner | Free G-50 Soldier | -7/Data Miner | Free G-67 Veteran | -7/Data Miner | Free P-70 Sage | -7/Data Miner | Free I-36 Angel | -7/Data Miner | Free I-47 Archangel | -7/Data Miner | Free Fabricated ------------ Exp. Sensor Array | x1 | -7/Factory Arm. Huge Wheel | x2 | -7/Factory Alien Tech Used ----------------- None Achievements -------------- None Challenges ------------ None Game ------ Seed DisruptionArmageddonExpander Manual? 0 Play Time 02:46:07 Cumulative 217.0 hours Start 2019.11.23 @ 15:42:52 End 2019.11.30 @ 00:36:00 Sessions 3 Manual Loads 0 Difficulty Rogue Special Mode None Game No. 188 Rogue 178 Adventurer 10 Explorer 0 Win Type - Total 4 Types 3/0/0/1/0/0/0 Lore% 66 Gallery% 83 Achievement% 65 Wizard Run 0 Options --------- ASCII 0 Keyboard 1 Movement Numpad Keybinds 0 Fullscreen 2 Font 18/SmallcapsGlow Map View 76x50 Tactical HUD 1 Map Filters NONE Filters NONE Steam 1 RUN: f2a23eae-5564-4353-803a-fad30e302eee